bitfinex/quotes_ETHUSD_20240715
["timestamp","ask_amount","ask_price","bid_price","bid_amount"]
[1721019152356,3.72482299,3340.5,3339.9,3.0]
[1721019152558,1.36472299,3340.4,3339.9,3.0]
[1721019152849,0.32793967,3340.3,3340.0,0.05923931]
[1721019153053,6.31110674,3340.5,3340.0,0.05923931]
[1721019153363,1.36477319,3340.4,3340.0,0.05923931]
[1721019153672,0.32796232,3340.3,3340.0,0.05923931]
[1721019153983,5.05431,3340.5,3340.0,0.05923931]
[1721019154179,1.36476624,3340.4,3340.0,0.05923931]
[1721019154378,0.32796068,3340.3,3340.0,0.05923931]
[1721019154584,2.3601,3340.5,3340.0,0.05923931]
[1721019154787,1.36475393,3340.4,3340.0,0.05923931]
[1721019154964,0.3279547,3340.3,3340.0,0.05923931]
[1721019155177,2.3601,3340.5,3340.0,0.05923931]
[1721019155376,1.36475792,3340.4,3340.0,0.05923931]
[1721019155577,0.32795664,3340.3,3340.0,0.05923931]
[1721019155765,2.3601,3340.5,3340.0,0.05923931]
[1721019155973,1.36475845,3340.4,3340.0,0.05923931]
[1721019156270,0.3279569,3340.3,3340.0,0.05923931]
[1721019156587,2.3601,3340.5,3340.0,0.05923931]
[1721019156795,1.36473832,3340.4,3340.0,0.05923931]
[1721019157114,0.32794712,3340.3,3340.0,0.05923931]
[1721019157311,2.3601,3340.5,3340.0,0.05923931]
[1721019157513,1.36473606,3340.4,3340.0,2.75382931]
[1721019157723,2.3601,3340.5,3340.0,2.75382931]
[1721019157724,0.32794602,3340.3,3340.0,2.75382931]
[1721019157875,3.61736281,3340.5,3340.0,2.75382931]
[1721019158184,1.36477957,3340.4,3340.0,0.05923931]
[1721019158384,0.32796673,3340.3,3340.0,0.05923931]
[1721019158623,4.78497494,3340.5,3340.0,0.05923931]
[1721019158791,1.36477978,3340.4,3340.0,0.05923931]
[1721019158991,0.32796726,3340.3,3340.0,0.05923931]
[1721019159297,3.61736281,3340.5,3340.0,0.05923931]
[1721019159498,1.36477187,3340.4,3340.0,0.05923931]
[1721019159707,1.03680833,3340.4,3340.0,0.05923931]
[1721019159892,2.3601,3340.5,3340.1,2.69447]
[1721019160088,0.3279288,3340.4,3340.3,2.69436]
[1721019160295,0.3279288,3340.4,3340.3,2.75356489]
[1721019161303,0.3279288,3340.4,3340.3,0.05920489]
[1721019161618,0.3279288,3340.4,3339.9,6.79367]
[1721019161619,0.3279288,3340.4,3340.2,2.69438]
[1721019161794,0.3279288,3340.4,3340.3,0.05920489]
[1721019163018,2.3601,3340.5,3340.3,0.05920489]
[1721019163218,0.32789552,3340.4,3340.3,0.05920489]
[1721019164694,0.32789552,3340.4,3340.1,2.69452]
[1721019164895,0.32789552,3340.4,3340.2,0.05922613]
[1721019166495,2.3601,3340.5,3340.2,0.05922613]
[1721019166700,1.36467098,3340.4,3340.2,0.05922613]
[1721019166901,2.3601,3340.5,3340.2,0.05922613]
[1721019167108,1.36468601,3340.4,3340.2,0.05922613]
[1721019167305,0.3279217,3340.3,3339.9,5.69464]
[1721019167493,0.32796587,3340.2,3340.0,0.05925139]
[1721019167710,6.31161075,3340.5,3340.0,0.05925139]
[1721019167896,1.36477733,3340.4,3340.0,0.05925139]
[1721019168239,1.36477733,3340.3,3340.0,0.05925139]
[1721019168439,0.32796607,3340.2,3340.0,0.05925139]
[1721019168631,6.31161075,3340.5,3340.0,0.05925139]
[1721019168838,1.36478048,3340.4,3340.0,0.05925139]
[1721019169039,1.36478048,3340.3,3340.0,0.05925139]
[1721019169239,1.36478316,3340.2,3340.0,0.05925139]
[1721019169435,1.03681556,3340.2,3340.0,0.05925139]
[1721019169739,6.31161075,3340.5,3340.0,0.05925139]
[1721019170038,2.53241755,3340.4,3340.0,0.05925139]
[1721019170242,0.32796782,3340.3,3340.0,0.05925139]
[1721019170443,1.36478093,3340.3,3340.0,0.05925139]
[1721019170625,2.3972,3340.1,3340.0,0.05925139]
[1721019170832,3.89421931,3340.1,3340.0,0.05925139]
[1721019171154,3.89421931,3340.1,3339.8,5.69476]
[1721019171155,3.43405434,3340.1,3339.8,5.69476]
[1721019171314,2.3972,3340.1,3340.0,0.05925139]
[1721019171495,3.43407167,3340.1,3339.8,5.69476]
[1721019171700,2.3972,3340.1,3339.9,0.05927264]
[1721019172103,1.36491411,3340.0,3339.5,2.69498]
[1721019172330,1.36491411,3339.9,3339.6,0.0593364]
[1721019172536,1.36491411,3339.8,3339.6,0.0593364]
[1721019172746,1.25728075,3340.0,3339.6,0.0593364]
[1721019172943,1.03696076,3339.7,3339.6,2.7542664]
[1721019173133,3.65448075,3340.1,3339.6,2.7542664]
[1721019173334,1.36501771,3340.0,3339.6,2.7542664]
[1721019173633,1.36501771,3339.9,3339.6,2.7542664]
[1721019173829,1.03693485,3339.8,3339.6,2.7542664]
[1721019174032,3.65448075,3340.1,3339.6,2.7542664]
[1721019174234,1.36498212,3340.0,3339.6,2.7542664]
[1721019174406,1.36498212,3339.9,3339.6,2.7542664]
[1721019174611,2.3972,3340.1,3339.6,2.7542664]
[1721019174923,1.36498299,3340.0,3339.6,2.7542664]
[1721019175134,1.36498299,3339.9,3339.6,2.7542664]
[1721019175336,2.3972,3340.1,3339.6,2.7542664]
[1721019175638,1.36499,3340.0,3339.6,2.7542664]
[1721019175947,1.0369206,3339.9,3339.6,2.7542664]
[1721019176136,2.3972,3340.1,3339.6,2.7542664]
[1721019176447,3.5923,3339.9,3339.6,0.0593364]
[1721019176635,1.03692454,3339.8,3339.6,0.0593364]
[1721019176843,1.03692454,3339.8,3339.2,3.0]
[1721019177163,1.03692454,3339.8,3339.4,2.69502]
[1721019177319,1.03692454,3339.8,3339.6,2.69487]
[1721019177717,2.4933,3339.9,3339.7,0.05938068]
[1721019178264,2.4933,3339.9,3339.7,2.75422068]
[1721019179263,2.77397235,3339.9,3339.7,0.05938068]
[1721019179461,1.03695761,3339.8,3339.7,0.05938068]
[1721019179648,2.77397235,3339.9,3339.1,3.31272253]
[1721019179827,1.36516697,3339.8,3339.7,0.05938068]
[1721019180160,1.36516156,3339.8,3339.7,0.05947038]
[1721019180387,1.36516156,3339.8,3339.2,2.6952]
[1721019180586,2.4933,3339.9,3339.7,0.05947038]
[1721019180783,2.4933,3339.9,3339.2,3.7942]
[1721019180784,2.00956498,3339.8,3339.2,3.7942]
[1721019180969,1.03699884,3339.7,3339.2,2.6952]
[1721019181507,2.4933,3339.9,3339.2,2.6952]
[1721019181645,2.4933,3339.9,3339.3,2.69516]
[1721019181845,2.4933,3339.9,3339.4,1.099]
[1721019182046,1.03694203,3339.8,3339.4,2.69502]
[1721019182246,2.4933,3339.9,3339.5,2.69498]
[1721019182464,2.4933,3339.9,3339.4,3.79402]
[1721019182794,2.4933,3339.9,3339.6,2.69492]
[1721019183658,1.36510335,3339.8,3339.6,2.69492]
[1721019183861,2.4933,3339.9,3339.6,2.69492]
[1721019185176,1.03701695,3339.8,3339.0,2.69533]
[1721019185481,2.4933,3339.9,3339.3,2.69517]
[1721019185688,1.36510848,3339.8,3339.3,2.69517]
[1721019185898,3.66834215,3339.7,3339.3,2.69517]
[1721019186107,1.099,3339.5,3338.9,2.69544]
[1721019186265,1.099,3339.5,3338.5,2.69576]
[1721019186266,1.099,3339.3,3338.5,2.69576]
[1721019186450,2.3032,3339.2,3338.6,2.69566]
[1721019187148,0.32834731,3339.1,3338.6,2.69566]
[1721019187353,2.3032,3339.2,3338.6,2.69566]
[1721019187682,0.32835847,3339.1,3338.6,2.69566]
[1721019187986,2.3032,3339.0,3338.6,2.69566]
[1721019188185,0.07487574,3338.9,3338.1,2.69613]
[1721019188396,3.4022,3338.9,3338.2,2.69605]
[1721019188904,2.3032,3338.9,3338.2,2.69605]
[1721019189481,2.3032,3338.9,3338.3,3.0]
[1721019190895,2.3032,3338.9,3338.3,5.69597]
[1721019191094,2.3032,3338.9,3338.3,3.0]
[1721019191300,2.3032,3338.9,3338.2,2.696]
[1721019191484,1.099,3338.3,3337.8,2.69637]
[1721019191795,2.4236,3338.2,3337.8,2.69637]
[1721019192360,2.4236,3338.2,3337.9,0.04621186]
[1721019201310,2.2624,3338.2,3337.8,2.69636]
[1721019201619,2.2624,3338.2,3338.0,0.04653293]
[1721019201781,2.2624,3338.2,3337.9,0.04655421]
[1721019202113,2.2624,3338.2,3338.0,0.04653293]
[1721019202274,2.2624,3338.2,3337.8,2.69636]
[1721019202470,2.2624,3338.2,3337.9,0.04655421]
[1721019203909,2.2624,3338.2,3337.6,2.6965]
[1721019204110,2.2624,3338.2,3337.7,0.04659676]
[1721019204318,2.2624,3338.2,3337.7,2.74303676]
[1721019206084,2.2624,3338.2,3337.7,0.04659676]
[1721019206085,3.43629898,3338.2,3337.7,0.04659676]
[1721019206394,2.974331,3338.1,3337.6,3.0]
[1721019206594,2.974331,3338.1,3337.8,0.04660818]
[1721019206792,1.099,3338.0,3337.7,0.04662946]
[1721019207014,2.4785,3337.8,3336.8,2.69712]
[1721019207216,2.69684,3337.3,3336.3,2.69759]
[1721019207381,2.69684,3337.3,3336.9,0.04531417]
[1721019207382,1.099,3337.1,3336.9,0.04531417]
[1721019207580,1.099,3337.1,3336.5,2.69743]
[1721019208092,1.099,3337.1,3336.6,0.04392116]
[1721019208896,1.099,3337.1,3336.4,2.6975]
[1721019209226,1.099,3337.1,3336.5,3.04394245]
[1721019212187,0.599,3337.1,3336.5,3.04394245]
[1721019212387,0.599,3337.1,3336.5,5.74136245]
[1721019212704,2.4785,3337.2,3336.5,5.74136245]
[1721019213605,2.4785,3337.2,3336.7,2.69724]
[1721019213995,2.4785,3337.2,3337.1,2.69695]
[1721019214313,2.4785,3337.2,3337.1,2.74076471]
[1721019217089,2.4785,3337.2,3337.1,0.04381471]
[1721019217293,2.4785,3337.2,3336.7,2.69725]
[1721019217704,2.4785,3337.2,3336.8,2.74106858]
[1721019218204,0.31364702,3337.6,3336.9,2.69709]
[1721019218520,0.31364702,3337.6,3336.5,3.94670923]
[1721019218521,0.31364702,3337.6,3337.4,2.6967]
[1721019218691,0.31364702,3337.6,3337.5,2.74053901]
[1721019219593,2.3088,3337.8,3337.6,2.69647]
[1721019220006,2.3088,3337.8,3337.7,0.04387645]
[1721019220602,2.3088,3337.8,3337.7,2.74033645]
[1721019225442,0.31361489,3338.1,3337.9,2.69623]
[1721019225443,2.74091489,3338.1,3337.9,2.69623]
[1721019225651,0.31361489,3338.1,3338.0,5.39244]
[1721019225941,2.4273,3338.5,3338.4,2.6959]
[1721019226306,2.4273,3338.5,3338.4,2.73962753]
[1721019227108,2.4273,3338.5,3338.4,5.43552753]
[1721019227311,0.31360518,3338.7,3338.6,8.08722]
[1721019227553,0.31360518,3338.7,3338.6,11.63722]
[1721019227763,2.4694,3340.0,3339.6,2.69487]
[1721019228049,2.4694,3340.0,3339.7,0.04340982]
[1721019228214,2.78295882,3340.0,3339.7,0.04340982]
[1721019228414,2.78295882,3340.0,3339.5,2.695]
[1721019228622,2.78295882,3340.0,3339.8,0.04338341]
[1721019228820,2.78295882,3340.0,3339.6,2.69492]
[1721019229051,2.78295882,3340.0,3339.9,0.04323483]
[1721019229465,2.78295882,3340.0,3339.4,2.69504]
[1721019229620,2.78295882,3340.0,3339.9,0.04287159]
[1721019229809,2.78295882,3340.0,3339.4,2.69504]
[1721019230121,2.78295882,3340.0,3339.4,2.69508]
[1721019230475,2.78295882,3340.0,3338.6,3.0]
[1721019230476,0.31355882,3340.0,3339.8,2.6947]
[1721019230758,0.31355882,3340.0,3339.9,5.38938]
[1721019230917,0.31355882,3340.0,3339.9,5.43225159]
[1721019231113,2.69364,3341.2,3340.2,2.69437]
[1721019231310,0.66375653,3341.1,3340.0,2.69457]
[1721019231513,0.31355343,3340.8,3340.3,2.73707124]
[1721019231715,0.31355343,3340.8,3340.4,0.10249936]
[1721019231985,2.69327,3341.7,3340.8,2.69395]
[1721019232250,0.31357086,3341.3,3340.8,2.69395]
[1721019232454,0.31357086,3341.3,3340.9,0.0425164]
[1721019233232,0.31357086,3341.3,3340.7,2.69402]
[1721019233551,2.4718,3341.2,3340.5,2.6942]
[1721019233751,2.4718,3341.2,3340.6,2.73660932]
[1721019234055,2.4718,3341.2,3340.6,0.04249932]
[1721019234236,2.4718,3341.2,3340.7,2.69404]
[1721019234553,2.4718,3341.2,3340.7,2.73651808]
[1721019234756,3.049749,3341.2,3340.7,2.73651808]
[1721019235054,3.049749,3341.2,3340.7,0.04247808]
[1721019235420,3.049749,3341.2,3340.5,2.69419]
[1721019235655,0.07483432,3341.1,3340.8,0.04245684]
[1721019235856,2.76855432,3341.1,3340.3,5.69435]
[1721019236066,0.64325633,3341.0,3340.9,0.0424356]
[1721019236241,0.64325633,3341.0,3340.3,2.69435]
[1721019236962,0.07483766,3340.9,3340.4,0.04254181]
[1721019237970,0.64325633,3341.0,3340.4,0.04254181]
[1721019238864,0.64325633,3341.0,3340.4,2.73682181]
[1721019239066,3.049749,3341.2,3340.4,2.73682181]
[1721019239274,5.743389,3341.2,3340.4,2.73682181]
[1721019239472,5.8182237,3341.2,3340.4,2.73682181]
[1721019240533,2.69372,3341.1,3340.4,0.04254181]
[1721019240734,0.07483805,3341.0,3340.2,5.69444]
[1721019240961,0.58183071,3340.9,3340.2,5.69444]
[1721019241163,0.58183071,3340.9,3340.3,0.04256305]
[1721019241533,0.58183071,3340.9,3340.3,2.73692305]
[1721019243834,0.58183071,3340.9,3340.4,2.69427]
[1721019244058,3.049749,3341.2,3340.6,2.69406]
[1721019244261,3.049749,3341.2,3340.5,2.73648046]
[1721019244559,2.4718,3341.2,3340.8,2.69394]
[1721019244943,2.4718,3341.2,3340.9,0.0422155]
[1721019245374,0.31357086,3341.3,3341.2,2.69364]
[1721019245580,0.31357086,3341.3,3341.2,8.08092]
[1721019245777,2.4252,3342.4,3341.8,2.69309]
[1721019246086,2.4252,3342.4,3341.9,0.0419774]
[1721019246389,2.4252,3342.4,3342.0,0.05984363]
[1721019246591,2.4252,3343.1,3342.3,2.69267]
[1721019246877,3.26832804,3343.1,3342.4,2.73312167]
[1721019247232,0.07479045,3343.0,3342.0,2.69298]
[1721019247867,2.69234,3342.9,3342.1,2.73345533]
[1721019248290,0.0747979,3342.8,3342.1,2.73345533]
[1721019248440,0.0747979,3342.8,3342.1,0.04055533]
[1721019248636,0.27671379,3342.7,3341.7,2.69319]
[1721019248888,2.6926,3342.5,3342.2,0.04053411]
[1721019249087,2.4883,3342.6,3341.8,3.0]
[1721019249253,2.4883,3342.6,3342.3,0.04022495]
[1721019249440,2.4883,3342.6,3340.4,0.15189271]
[1721019249441,2.69289,3342.2,3341.1,3.0]
[1721019249644,0.538556,3342.1,3341.4,2.69344]
[1721019250453,0.538556,3342.1,3341.3,2.69349]
[1721019250654,2.69259,3342.5,3341.6,5.3865]
[1721019250969,2.69259,3342.5,3341.7,2.69323]
[1721019251780,2.69267,3342.4,3341.5,2.69335]
[1721019251968,2.69275,3342.3,3341.4,2.69347]
[1721019252147,0.074809,3342.2,3341.4,2.69347]
[1721019252350,0.2767559,3342.1,3341.4,2.69347]
[1721019252555,0.2767559,3342.1,3341.5,0.04039475]
[1721019252941,5.0938,3342.0,3341.5,0.04039475]
[1721019253278,5.09384,3342.0,3341.1,2.69372]
[1721019253487,2.4008,3342.0,3341.6,0.04037352]
[1721019253773,2.4008,3342.0,3340.4,2.69424]
[1721019253774,2.93784759,3342.0,3341.7,0.0403523]
[1721019253982,0.93784759,3342.0,3341.7,0.0403523]
[1721019254156,0.93784759,3342.0,3341.8,0.04033107]
[1721019254352,0.4008,3342.0,3341.8,0.04033107]
[1721019254767,0.4008,3342.0,3341.4,2.69344]
[1721019255300,0.4008,3342.0,3341.5,0.04039475]
[1721019256253,0.4008,3342.0,3341.7,2.69323]
[1721019256582,2.6926,3342.5,3341.8,2.69314]
[1721019256781,2.6926,3342.5,3341.8,2.73347107]
[1721019257091,2.3283,3342.4,3341.8,2.69314]
[1721019259147,2.3283,3342.4,3341.6,2.69329]
[1721019259659,2.3283,3342.4,3341.7,0.0403523]
[1721019259990,3.18385756,3342.4,3341.7,2.7335823]
[1721019260199,3.18385756,3342.4,3341.7,0.0403523]
[1721019260493,3.18385756,3342.4,3341.5,2.69338]
[1721019260696,5.87659756,3342.4,3341.8,0.04033107]
[1721019260847,0.91302239,3342.3,3341.6,2.69332]
[1721019261244,0.91302239,3342.3,3341.7,0.0403523]
[1721019261487,3.60579239,3342.3,3341.7,0.0403523]
[1721019261664,3.60579239,3342.3,3341.4,2.69344]
[1721019261992,3.60579239,3342.3,3341.8,0.04033107]
[1721019262206,0.86268324,3342.2,3341.2,2.69362]
[1721019262406,2.4767,3342.0,3341.3,3.0]
[1721019262753,2.4767,3342.0,3341.4,0.04041598]
[1721019263596,5.16971,3342.0,3341.4,0.04041598]
[1721019264265,5.16971,3342.0,3341.1,3.0]
[1721019264469,6.04224732,3342.0,3341.5,0.04033128]
[1721019264662,6.04224732,3342.0,3341.2,2.69363]
[1721019264867,2.69308,3341.9,3341.6,0.04031005]
[1721019265084,2.69353,3341.4,3340.5,2.69419]
[1721019265266,2.69353,3341.4,3339.8,5.18736]
[1721019265267,2.69353,3341.4,3340.6,2.69411]
[1721019265480,2.69353,3341.4,3340.6,2.73341511]
[1721019266566,2.69373,3341.1,3340.6,0.03930511]
[1721019267091,2.69373,3341.1,3340.7,0.03936424]
[1721019267297,2.69373,3341.1,3340.4,2.69427]
[1721019267584,2.69373,3341.1,3340.8,0.039343]
[1721019267793,3.48013,3341.1,3340.4,2.69427]
[1721019268005,3.48013,3341.1,3340.9,0.03932177]
[1721019268006,2.69373,3341.1,3340.9,0.03932177]
[1721019268178,2.69373,3341.1,3340.4,2.69427]
[1721019268899,2.69373,3341.1,3340.5,0.03940673]
[1721019269487,5.17027,3341.3,3340.5,0.03940673]
[1721019269692,2.69372,3341.1,3340.5,0.03940673]
[1721019273197,5.1703,3341.3,3340.5,2.73360673]
[1721019273404,2.69333,3341.6,3340.5,2.73360673]
[1721019273716,2.4387,3342.1,3341.5,2.69339]
[1721019273924,2.69272,3342.4,3341.5,2.69339]
[1721019274129,1.03631571,3342.3,3341.6,0.03925336]
[1721019274440,4.208115,3342.4,3341.6,2.73254336]
[1721019274583,1.03631249,3342.3,3341.6,2.73254336]
[1721019274783,2.69276,3342.3,3341.6,2.73254336]
[1721019275411,1.515395,3342.4,3341.6,2.73254336]
[1721019275627,5.13135,3342.5,3341.8,2.69314]
[1721019275628,2.4387,3342.5,3341.8,2.69314]
[1721019276298,6.377408,3342.5,3341.0,3.0]
[1721019276541,2.69267,3342.4,3341.9,0.03908877]
[1721019276706,2.69267,3342.4,3341.6,2.6933]
[1721019276901,2.6929,3342.2,3341.3,2.69355]
[1721019277134,2.69292,3342.1,3341.7,0.03913123]
[1721019277439,2.69292,3342.1,3341.3,2.69355]
[1721019277734,7.33,3342.7,3341.3,2.69355]
[1721019277735,2.4492,3343.0,3341.8,0.03911]
[1721019277935,2.4492,3343.0,3341.5,2.4718]
[1721019277936,1.03619092,3342.8,3342.1,2.69284]
[1721019278244,5.14139,3343.0,3342.2,0.03900288]
[1721019278448,1.03610036,3342.8,3342.2,2.73182288]
[1721019278742,2.4492,3343.0,3342.3,2.69274]
[1721019278912,1.03608566,3342.9,3342.3,5.38543]
[1721019279123,2.4492,3343.0,3342.4,2.73162044]
[1721019279413,2.4492,3343.0,3342.4,2.79145298]
[1721019279613,2.4492,3343.0,3342.6,2.69249]
[1721019279813,2.4492,3343.0,3342.4,2.73162044]
[1721019280017,2.4492,3343.0,3342.4,2.69266]
[1721019280316,0.31339001,3343.3,3342.6,2.6925]
[1721019280637,0.31339001,3343.3,3342.7,0.03889678]
[1721019280638,1.03599754,3343.2,3342.7,0.03889678]
[1721019281055,1.12801001,3343.3,3342.6,2.6925]
[1721019281404,1.03600216,3343.2,3342.6,2.6925]
[1721019281639,1.12801001,3343.3,3342.6,2.6925]
[1721019281826,1.03600309,3343.2,3342.6,2.6925]
[1721019282111,1.12801001,3343.3,3342.4,2.69266]
[1721019282112,3.81997001,3343.3,3342.4,2.69266]
[1721019282301,2.25930321,3343.2,3342.7,0.03889678]
[1721019282525,2.69221,3343.0,3342.2,2.69283]
[1721019282839,2.69221,3343.0,3342.8,0.03887557]
[1721019283007,2.69221,3343.0,3342.2,2.69283]
[1721019283547,2.69221,3343.0,3342.0,2.69299]
[1721019283548,3.588126,3343.2,3342.3,0.03898165]
[1721019283748,2.69228,3342.9,3342.3,0.03898165]
[1721019283907,2.69228,3342.9,3342.1,5.69291]
[1721019284112,2.69228,3342.9,3342.4,0.03896044]
[1721019284449,2.69228,3342.9,3342.5,0.03893922]
[1721019284804,2.69228,3342.9,3342.1,5.69291]
[1721019285140,2.69228,3342.9,3342.2,0.03900288]
[1721019285557,3.29421816,3342.9,3342.2,0.03900288]
[1721019286548,2.69243,3342.7,3342.2,0.03900288]
[1721019286783,2.4425,3342.6,3342.2,0.03900288]
[1721019286963,2.76739869,3342.5,3342.2,0.03900288]
[1721019287251,2.69268,3342.4,3342.3,0.03872519]
[1721019287453,3.48291287,3342.4,3342.3,0.03872519]
[1721019287628,3.48291287,3342.4,3341.7,3.0]
[1721019287833,3.48291287,3342.4,3341.8,0.0388313]
[1721019287834,2.69268,3342.4,3341.8,0.0388313]
[1721019288562,2.69275,3342.3,3341.8,0.0388313]
[1721019288867,2.69275,3342.3,3341.0,2.2731]
[1721019288868,2.4468154,3342.6,3342.0,1.75]
[1721019289060,2.69268,3342.4,3342.0,1.75]
[1721019289263,5.1393254,3342.6,3342.1,0.03868899]
[1721019289264,2.69276,3342.3,3342.1,0.03868899]
[1721019290058,2.69261,3342.5,3342.1,0.03868899]
[1721019290240,2.4468154,3342.6,3342.1,0.03868899]
[1721019290439,2.69259,3342.5,3342.0,1.75]
[1721019290669,2.69259,3342.5,3342.1,0.03868899]
[1721019292487,3.60072105,3342.5,3342.1,0.03868899]
[1721019292674,2.69259,3342.5,3342.1,0.03868899]
[1721019293186,2.69267,3342.4,3342.1,0.03868899]
[1721019293959,2.69283,3342.2,3342.1,0.03868899]
[1721019294383,2.69291,3342.1,3342.0,1.75]
[1721019294797,2.69291,3342.1,3342.0,1.78873586]
[1721019295560,3.35643151,3342.1,3342.0,1.78873586]
[1721019295763,8.71709799,3342.1,3342.0,1.78873586]
[1721019295999,8.71708577,3342.1,3342.0,1.78873586]
[1721019296177,8.71708577,3342.1,3342.0,1.75]
[1721019297167,8.38954151,3342.1,3342.0,1.75]
[1721019297392,9.96661126,3342.1,3342.0,1.75]
[1721019297565,11.00302812,3342.1,3342.0,1.75]
[1721019298885,11.32003914,3342.1,3342.0,1.75]
[1721019299084,11.83540554,3342.1,3342.0,1.75]
[1721019300617,11.83549035,3342.1,3342.0,1.75]
[1721019301013,11.83546201,3342.1,3342.0,1.75]
[1721019301509,7.65028945,3342.1,3342.0,1.75]
[1721019301683,6.39726985,3342.1,3342.0,1.75]
[1721019302998,5.03311,3342.1,3342.0,1.75]
[1721019303206,6.39702307,3342.1,3342.0,1.75]
[1721019305398,4.05682307,3342.1,3342.0,1.75]
[1721019306331,4.05682682,3342.1,3342.0,1.75]
[1721019309663,3.72928151,3342.1,3342.0,1.75]
[1721019309874,4.05683201,3342.1,3342.0,1.75]
[1721019313072,4.05682543,3342.1,3342.0,1.75]
[1721019313349,3.02046174,3342.1,3342.0,1.75]
[1721019313581,4.05683455,3342.1,3342.0,1.75]
[1721019314250,2.69291,3342.1,3342.0,1.75]
[1721019314477,2.61718272,3342.1,3342.0,1.75]
[1721019314753,1.0363677,3342.1,3342.0,1.75]
[1721019314978,1.56673158,3342.4,3342.0,1.75]
[1721019314979,0.31346347,3342.4,3342.1,2.4273]
[1721019315168,1.03617956,3342.3,3342.1,2.4273]
[1721019315371,0.0043154,3342.6,3342.2,0.0388712]
[1721019315574,1.03617098,3342.5,3342.2,0.0388712]
[1721019315795,0.0043154,3342.6,3342.2,0.0388712]
[1721019315957,1.03617933,3342.4,3342.0,4.44299]
[1721019316161,1.03617933,3342.4,3342.0,1.75]
[1721019316162,3.72895933,3342.3,3342.0,1.75]
[1721019316382,1.03623696,3342.2,3342.0,1.75]
[1721019316557,2.6926,3342.5,3342.0,1.75]
[1721019316762,1.03620105,3342.4,3342.0,1.75]
[1721019316993,1.03620105,3342.3,3342.0,1.75]
[1721019317181,2.6926,3342.5,3342.0,1.75]
[1721019317182,1.03620105,3342.2,3342.0,1.75]
[1721019317369,1.03620105,3342.4,3342.0,1.75]
[1721019317554,1.0362145,3342.3,3342.0,1.75]
[1721019317755,1.0362145,3342.2,3342.0,1.75]
[1721019317981,1.0362145,3342.4,3342.0,1.75]
[1721019318181,1.0362145,3342.3,3342.0,1.75]
[1721019318391,1.0362145,3342.2,3342.0,1.75]
[1721019318569,2.69281,3342.3,3342.0,1.75]
[1721019318781,1.03621537,3342.2,3342.0,1.75]
[1721019319087,1.03621537,3342.1,3342.0,1.75]
[1721019319292,1.03621537,3342.2,3342.0,1.75]
[1721019319498,2.69281,3342.3,3342.0,1.75]
[1721019319700,1.0362388,3342.1,3342.0,1.75]
[1721019319992,4.58762088,3342.1,3342.0,1.75]
[1721019320152,4.05664476,3342.1,3342.0,1.75]
[1721019320577,5.30991287,3342.1,3342.0,1.75]
[1721019320792,7.58031287,3342.1,3342.0,1.75]
[1721019321095,9.5355589,3342.1,3342.0,1.75]
[1721019321395,12.82382661,3342.1,3342.0,1.75]
[1721019322896,12.82443495,3342.1,3342.0,1.75]
[1721019323256,15.51735114,3342.1,3342.0,1.75]
[1721019323491,15.53815114,3342.1,3342.0,1.75]
[1721019323695,13.65574095,3342.1,3342.0,1.75]
[1721019323869,16.65574095,3342.1,3342.0,1.75]
[1721019325985,16.65579112,3342.1,3342.0,1.75]
[1721019326191,18.53760978,3342.1,3342.0,1.75]
[1721019326570,18.53777181,3342.1,3342.0,1.75]
[1721019327499,16.65579112,3342.1,3342.0,1.75]
[1721019329173,15.29151838,3342.1,3342.0,1.75]
[1721019329510,16.65584542,3342.1,3342.0,1.75]
[1721019330513,13.96293542,3342.1,3342.0,1.75]
[1721019330705,14.27645053,3342.1,3342.0,1.75]
[1721019332597,14.27638778,3342.1,3342.0,1.75]
[1721019333002,14.27638837,3342.1,3342.0,1.75]
[1721019334072,7.88629413,3342.1,3342.0,1.75]
[1721019334269,9.7690836,3342.1,3342.0,1.75]
[1721019334465,4.88629413,3342.1,3342.0,1.75]
[1721019334666,4.8861013,3342.1,3342.0,1.75]
[1721019335747,3.84943808,3342.1,3342.0,1.75]
[1721019335946,5.72838773,3342.1,3342.0,1.75]
[1721019337228,4.88586335,3342.1,3342.0,1.75]
[1721019338529,2.19295335,3342.1,3342.0,1.75]
[1721019339052,4.88579405,3342.1,3342.0,1.75]
[1721019341112,2.19288405,3342.1,3342.0,1.75]
[1721019341315,4.88579405,3342.1,3342.0,1.75]
[1721019342028,5.83201371,3342.1,3342.0,1.75]
[1721019342224,4.46805608,3342.1,3342.0,1.75]
[1721019342429,5.8320962,3342.1,3342.0,1.75]
[1721019342611,4.46805608,3342.1,3342.0,1.75]
[1721019342942,4.88588295,3342.1,3342.0,1.75]
[1721019345434,3.52183642,3342.1,3342.0,1.75]
[1721019345654,4.88587884,3342.1,3342.0,1.75]
[1721019346849,11.80459873,3342.1,3342.0,1.75]
[1721019348743,8.55664642,3342.1,3342.0,1.75]
[1721019348951,11.80485941,3342.1,3342.0,1.75]
[1721019351544,13.73863186,3342.1,3342.0,1.75]
[1721019351850,11.85456746,3342.1,3342.0,1.75]
[1721019352245,11.85457053,3342.1,3342.0,1.75]
[1721019352448,11.85457378,3342.1,3342.0,1.75]
[1721019352647,11.8545694,3342.1,3342.0,1.75]
[1721019353543,13.73861849,3342.1,3342.0,1.75]
[1721019353748,9.46294604,3342.1,3342.0,1.75]
[1721019353946,4.88598695,3342.1,3342.0,1.75]
[1721019354462,8.67789695,3342.1,3342.0,1.75]
[1721019355319,7.31374642,3342.1,3342.0,1.75]
[1721019355519,8.6777277,3342.1,3342.0,1.75]
[1721019355948,5.9848177,3342.1,3342.0,1.75]
[1721019356151,2.1929077,3342.1,3342.0,1.75]
[1721019356365,2.61974628,3342.1,3342.0,1.75]
[1721019356533,2.61974628,3342.1,3342.0,1.78904791]
[1721019356534,1.36398128,3342.1,3342.0,1.78904791]
[1721019357849,1.03640197,3342.1,3342.0,1.78904791]
[1721019358232,1.57409173,3342.6,3342.0,1.78904791]
[1721019358233,1.255765,3342.5,3342.0,1.78904791]
[1721019358438,1.255765,3342.5,3342.0,4.48197791]
[1721019358645,1.36350635,3342.4,3342.0,4.48197791]